bitfinex-derivatives/quotes_ETHF0:USTF0_20260120
["timestamp","ask_amount","ask_price","bid_price","bid_amount"]
[1768921688587,0.76122308,3016.7,3015.0,3.42288024]
[1768921688779,0.76122308,3016.7,3015.4,3.42288024]
[1768921688987,0.76122308,3016.7,3015.1,3.42288024]
[1768921689182,0.76394777,3016.7,3015.4,0.00347356]
[1768921689582,0.72747489,3016.7,3015.4,0.00347356]
[1768921689991,0.72747489,3016.7,3015.7,5.05488457]
[1768921690187,0.72747489,3016.7,3015.4,0.00347356]
[1768921690188,2.99224485,3016.7,3015.4,0.00347356]
[1768921690389,1.61121706,3016.0,3013.6,3.42288024]
[1768921690786,2.33869195,3016.7,3014.0,3.42288024]
[1768921690982,2.73313353,3016.6,3014.0,3.42288024]
[1768921691387,1.61121706,3016.0,3014.0,0.00404964]
[1768921692079,4.34435059,3016.0,3014.0,0.00404964]
[1768921692284,4.34435059,3016.0,3013.3,3.42288024]
[1768921692285,1.61121706,3015.3,3011.8,3.42288024]
[1768921692497,2.73313353,3015.9,3012.6,3.42288024]
[1768921692703,2.73313353,3015.9,3013.1,3.42288024]
[1768921693190,2.73313353,3015.9,3013.2,3.42288024]
[1768921693593,0.16598,3015.3,3013.6,3.42288024]
[1768921693983,0.16598,3015.3,3013.7,5.05488457]
[1768921694183,0.16601,3014.7,3012.9,3.42288024]
[1768921694386,0.16602,3014.4,3012.1,3.42288024]
[1768921694688,0.16598,3015.3,3012.9,3.42288024]
[1768921695090,2.73618174,3015.8,3013.6,5.05488457]
[1768921695286,0.16593,3016.1,3014.0,5.05488457]
[1768921695491,0.16593,3016.1,3014.0,3.40000531]
[1768921695793,0.16593,3016.1,3014.0,0.00330389]
[1768921695794,2.73132918,3016.0,3014.0,0.00330389]
[1768921695982,0.00274116,3016.1,3012.2,4.46629883]
[1768921695983,0.16603,3014.4,3012.3,3.40000531]
[1768921696188,0.16603,3014.3,3012.3,3.40000531]
[1768921696584,2.73132918,3015.5,3011.9,3.322]
[1768921696585,0.16599,3015.1,3012.6,3.56612531]
[1768921696981,2.73132918,3015.5,3012.9,3.40000531]
[1768921697186,0.16603,3014.3,3012.6,0.00364416]
[1768921697387,0.16603,3014.3,3012.7,3.40000531]
[1768921697694,2.73132918,3015.5,3012.9,3.40000531]
[1768921697889,2.73296911,3015.3,3012.9,3.40000531]
[1768921698102,0.16597,3015.4,3013.2,3.40000531]
[1768921698392,2.73296911,3016.0,3013.2,3.40000531]
[1768921698393,0.16601,3014.7,3013.2,3.40000531]
[1768921698591,0.16601,3014.7,3013.3,3.40000531]
[1768921698786,0.16596,3015.5,3013.3,3.40000531]
[1768921699096,0.16596,3015.5,3013.7,3.40000531]
[1768921699295,2.76544028,3016.1,3012.9,3.40000531]
[1768921699494,2.76269912,3015.3,3012.9,3.40000531]
[1768921699693,2.76269912,3015.3,3012.6,0.00364416]
[1768921699998,0.16604,3014.2,3012.6,0.00364416]
[1768921700294,0.16599,3015.0,3013.4,8.45488988]
[1768921700486,0.16595,3015.7,3013.5,3.40000531]
[1768921700685,0.00274116,3016.1,3013.5,3.40000531]
[1768921700686,0.16597,3015.5,3013.5,3.40000531]
[1768921700888,0.16598,3015.3,3013.7,5.05488457]
[1768921701093,0.16598,3015.3,3013.5,3.40000531]
[1768921701094,0.16598,3015.2,3014.0,5.05488457]
[1768921701297,0.16601,3014.6,3012.8,3.40000531]
[1768921701502,0.16601,3014.6,3012.9,3.40000531]
[1768921701700,0.16601,3014.6,3013.6,5.05488457]
[1768921701902,0.16601,3014.6,3013.8,5.05488457]
[1768921702102,0.16606,3013.8,3012.6,0.00364416]
[1768921702297,0.16876583,3013.8,3012.9,5.05488457]
[1768921702793,0.16876583,3013.8,3013.1,5.05488457]
[1768921703000,2.76185693,3015.7,3012.6,3.40364947]
[1768921703200,0.16599,3015.0,3012.6,3.40364947]
[1768921703397,0.16599,3015.0,3012.9,3.40000531]
[1768921703601,2.76185693,3015.1,3012.6,0.00364416]
[1768921703901,0.16604,3014.2,3012.6,0.00364416]
[1768921704297,0.16609,3013.2,3011.5,3.40000531]
[1768921704504,0.1661,3013.1,3011.5,3.40000531]
[1768921704901,2.5159776,3013.9,3011.5,3.40000531]
[1768921705094,0.16606,3013.7,3011.8,8.28887988]
[1768921705294,0.16604,3014.2,3011.9,3.40000531]
[1768921705603,0.16604,3014.2,3012.3,3.40000531]
[1768921705796,0.00283244,3015.1,3012.5,3.40000531]
[1768921705997,0.16601,3014.6,3013.0,4.88887457]
[1768921706200,0.00283244,3015.1,3013.2,4.88887457]
[1768921706399,0.00283244,3015.1,3011.9,33.5]
[1768921706400,0.16604,3014.1,3012.1,3.40000531]
[1768921706597,0.16604,3014.1,3012.3,3.40000531]
[1768921706904,0.16605,3013.9,3012.3,3.40000531]
[1768921707096,0.16605,3013.9,3012.6,3.40000531]
[1768921707404,0.16605,3013.9,3012.9,4.88887457]
[1768921707601,0.16605,3013.9,3013.3,4.88887457]
[1768921707896,0.16601,3014.6,3012.6,3.40000531]
[1768921708103,0.00283244,3015.1,3013.0,3.40000531]
[1768921708298,0.00283244,3015.1,3011.8,0.00315851]
[1768921708299,0.16604,3014.2,3012.2,8.28887988]
[1768921708501,0.16604,3014.2,3012.7,4.88887457]
[1768921708802,0.16604,3014.2,3012.3,3.56614531]
[1768921708803,0.16604,3014.1,3012.8,3.40000531]
[1768921709194,0.16604,3014.1,3013.5,4.88887457]
[1768921709392,0.16605,3014.0,3013.4,4.88887457]
[1768921709592,2.37631236,3014.9,3012.1,3.40000531]
[1768921709798,0.16605,3014.0,3012.3,3.40000531]
[1768921709995,0.16605,3014.0,3012.5,3.40000531]
[1768921710200,0.00283244,3015.1,3013.4,4.88887457]
[1768921710505,0.16602,3014.5,3012.9,3.40000531]
[1768921710703,0.16602,3014.5,3013.1,4.88887457]
[1768921710906,0.16602,3014.5,3013.7,4.88887457]
[1768921711101,0.00283244,3015.1,3013.5,4.88887457]
[1768921711295,0.7247502,3016.7,3013.3,3.321]
[1768921711296,0.16592,3016.3,3014.6,4.88887457]
[1768921711502,0.16592,3016.3,3013.3,3.321]
[1768921711503,0.16592,3016.3,3014.5,6.72100531]
[1768921711702,0.16592,3016.3,3015.7,4.88887457]
[1768921712006,0.7247502,3016.7,3015.7,4.88887457]
[1768921712206,0.7247502,3016.7,3015.8,4.88887457]
[1768921712404,0.16595,3015.9,3014.5,6.72100531]
[1768921712602,6.47741178,3016.7,3013.6,3.40000531]
[1768921712803,2.4277109,3016.5,3013.8,3.40000531]
[1768921713005,0.16596,3015.5,3013.8,3.40000531]
[1768921713206,2.4277109,3016.2,3013.1,3.40000531]
[1768921713405,0.16599,3015.0,3013.1,3.40262759]
[1768921713804,0.16599,3015.0,3013.6,4.88887457]
[1768921714005,0.16599,3015.0,3014.0,4.88887457]
[1768921714208,2.4277109,3015.9,3013.1,0.00262228]
[1768921714514,0.16603,3014.3,3013.1,0.00262228]
[1768921714810,0.17022059,3014.3,3013.1,0.00262228]
[1768921715006,0.16599,3015.1,3013.2,3.40000531]
[1768921715307,0.16599,3015.1,3014.4,4.88887457]
[1768921715509,0.16599,3015.1,3013.4,3.40000531]
[1768921715711,0.16601,3014.6,3013.1,0.00262228]
[1768921715915,0.16601,3014.6,3013.6,4.88887457]
[1768921716102,0.16940301,3014.6,3013.6,4.88887457]
[1768921716303,0.16940301,3014.6,3013.1,0.00262228]
[1768921716608,0.16940301,3014.6,3013.8,4.88887457]
[1768921716809,0.16940301,3014.6,3013.1,3.40262759]
[1768921717116,0.16940301,3014.6,3013.8,4.88887457]
[1768921717319,0.16602,3014.5,3013.5,4.88887457]
[1768921717507,0.16602,3014.5,3013.8,4.88887457]
[1768921717706,0.16602,3014.5,3013.6,4.88887457]
[1768921718216,0.16595,3015.7,3013.8,3.56605531]
[1768921718407,0.16596,3015.6,3014.3,3.40000531]
[1768921718603,0.7247502,3016.7,3014.4,3.40000531]
[1768921718913,1.36767406,3016.6,3014.5,3.40000531]
[1768921719113,0.16597,3015.3,3014.1,4.88887457]
[1768921719314,0.16598,3015.2,3014.1,4.88887457]
[1768921719514,2.47199865,3016.5,3014.2,4.88887457]
[1768921719815,1.66954961,3016.3,3013.9,3.40000531]
[1768921720015,0.166,3014.8,3013.9,3.40000531]
[1768921720314,0.16597,3015.5,3014.7,4.88887457]
[1768921720514,2.47199865,3016.4,3014.1,4.88887457]
[1768921720816,0.16598,3015.2,3013.9,3.40000531]
[1768921721019,0.16598,3015.2,3014.0,3.40000531]
[1768921721224,0.16598,3015.2,3014.3,4.88887457]
[1768921721421,0.00329437,3016.6,3015.0,4.88887457]
[1768921721626,0.16596,3015.6,3014.4,3.40000531]
[1768921721923,0.00329437,3016.6,3014.4,3.40000531]
[1768921721924,0.16596,3015.5,3014.5,4.88887457]
[1768921722126,0.16597,3015.3,3014.5,4.88887457]
[1768921722313,0.16597,3015.3,3014.4,3.40000531]
[1768921722314,2.74371703,3016.5,3013.6,3.40000531]
[1768921722513,0.16598,3015.2,3013.8,3.40000531]
[1768921722818,0.16597,3015.5,3014.4,4.88887457]
[1768921723020,0.16597,3015.5,3013.8,3.40000531]
[1768921723221,0.16597,3015.4,3013.5,3.54298779]
[1768921723421,1.66954961,3016.4,3014.3,4.88887457]
[1768921723626,0.16598,3015.3,3013.9,3.54298779]
[1768921723924,4.98954961,3016.4,3013.9,3.54298779]
[1768921724115,0.16598,3015.3,3014.0,4.88887457]
[1768921724314,0.16598,3015.2,3014.0,4.88887457]
[1768921724535,4.53441055,3015.9,3013.2,3.54298779]
[1768921724822,0.166,3014.9,3013.2,8.43186236]
[1768921725014,6.18486094,3015.9,3013.6,3.36670728]
[1768921725218,0.16602,3014.5,3013.6,3.36670728]
[1768921725513,3.32,3015.7,3013.6,3.36670728]
[1768921725718,0.16601,3014.6,3013.6,3.36670728]
[1768921726024,0.16603,3014.3,3013.0,3.36670728]
[1768921726225,0.1687947,3014.3,3013.9,3.25255699]
[1768921726426,0.16604,3014.2,3013.0,3.36670728]
[1768921726628,0.16604,3014.2,3013.9,3.25255699]
[1768921726827,0.16605,3013.9,3013.0,3.36670728]
[1768921727539,0.0027647,3014.3,3013.0,3.36670728]
[1768921727827,0.0027647,3014.3,3012.2,1.985]
[1768921727828,0.0027647,3014.3,3012.4,3.36670728]
[1768921728421,0.1687947,3014.3,3013.1,3.36932956]
[1768921728624,0.0027647,3014.3,3013.1,3.36932956]
[1768921729225,0.16606,3013.7,3013.1,0.00262228]
[1768921729429,0.16607,3013.6,3013.1,0.00262228]
[1768921729733,0.16607,3013.5,3012.5,3.36670728]
[1768921729923,0.0027647,3014.3,3011.8,3.36670728]
[1768921730131,0.16612,3012.6,3011.8,3.36670728]
[1768921730321,6.614206,3014.0,3011.8,3.36670728]
[1768921730518,1.366206,3013.9,3011.8,3.36670728]
[1768921730726,1.366206,3013.8,3011.8,3.37013422]
[1768921730926,0.16614,3012.3,3011.8,0.00342694]
[1768921731119,4.62398144,3013.7,3011.1,3.36670728]
[1768921731120,0.16615,3012.1,3011.1,3.36670728]
[1768921731527,3.25777544,3013.7,3011.1,3.36670728]
[1768921731736,8.09859926,3013.6,3011.1,3.36670728]
[1768921731937,1.36462467,3013.5,3011.1,3.36670728]
[1768921732125,1.36462467,3013.4,3011.1,3.36941016]
[1768921732434,0.16617,3011.8,3011.1,3.36941016]
[1768921732629,0.16608,3013.4,3011.1,3.36941016]
[1768921732835,0.16612,3012.7,3011.1,3.36941016]
[1768921733328,0.16612,3012.7,3009.2,1.61302476]
[1768921733329,3.41297459,3011.4,3008.1,2.15137]
[1768921733532,0.16624,3010.5,3008.4,0.16635]
[1768921733733,23.41812,3012.7,3008.1,1.985]
[1768921733734,0.16623,3010.8,3008.6,0.16634]
[1768921733932,3.41297459,3012.1,3008.7,3.321]
[1768921734228,3.41297459,3010.0,3008.7,3.97233268]
[1768921734436,3.41297459,3010.0,3006.5,3.322]
[1768921734437,3.322,3009.9,3006.5,3.322]
[1768921734632,0.16632,3009.0,3006.6,5.308]
[1768921734929,0.16628,3009.9,3006.7,5.308]
[1768921735136,0.16628,3009.9,3007.6,3.36670728]
[1768921735331,0.16896563,3009.9,3007.6,3.3699049]
[1768921735534,0.16622,3010.8,3008.4,0.16635]
[1768921735733,0.1662,3011.3,3008.5,3.36670728]
[1768921736027,3.41297459,3012.0,3008.7,3.36670728]
[1768921736230,3.41297459,3011.9,3008.9,3.36670728]
[1768921736431,3.322,3012.3,3008.9,3.36670728]
[1768921736635,0.1662,3011.2,3009.1,3.36670728]
[1768921736933,0.16621,3011.1,3009.1,3.36670728]
[1768921737133,0.16622,3010.8,3009.2,3.36670728]
[1768921737334,0.16622,3010.8,3009.3,8.67470728]
[1768921737534,0.16622,3010.8,3009.4,3.36670728]
[1768921737943,0.16623,3010.7,3009.4,3.36670728]
[1768921738231,0.1662,3011.3,3009.4,3.36670728]
[1768921738436,0.16623,3010.7,3009.4,3.36670728]
[1768921738639,0.16623,3010.7,3009.4,6.68970728]
[1768921738934,3.41297459,3011.6,3009.0,3.323]
[1768921739124,3.41297459,3011.4,3008.6,3.323]
[1768921739324,3.41297459,3011.2,3008.6,3.36670728]
[1768921740034,3.41297459,3011.0,3008.6,3.36670728]
[1768921740435,0.16626,3010.1,3008.6,6.68970728]
[1768921740634,0.16626,3010.1,3008.6,3.36670728]
[1768921740833,0.16626,3010.1,3008.8,3.36670728]
[1768921741036,3.41297459,3011.0,3008.9,3.36670728]
[1768921741037,0.16621,3011.0,3008.9,3.36670728]
[1768921741338,0.16625,3010.4,3008.6,5.309]
[1768921741543,3.41297459,3010.2,3007.7,3.323]
[1768921741731,0.1663,3009.4,3007.6,6.6929049]
[1768921741929,0.1663,3009.4,3007.6,0.00319762]
[1768921741930,0.00379506,3009.4,3007.6,0.00319762]
[1768921742227,0.16634,3008.7,3007.6,0.00319762]
[1768921742430,3.41676965,3009.4,3007.6,0.00319762]
[1768921742633,0.16634,3008.7,3007.6,0.00319762]
[1768921742936,0.16635,3008.4,3007.6,0.00319762]
[1768921743235,0.16638,3008.0,3006.2,6.69070728]
[1768921743441,0.16638,3008.0,3006.2,3.36670728]
[1768921743637,0.16638,3008.0,3006.3,5.31]
[1768921743839,3.41297459,3008.8,3006.1,3.324]
[1768921743840,0.1664,3007.7,3006.1,3.324]
[1768921744040,0.1664,3007.7,3006.1,0.00321394]
[1768921744337,3.41297459,3007.1,3005.2,4.35688685]
[1768921744543,3.41297459,3007.1,3004.4,0.5]
[1768921744741,0.16648,3006.2,3004.4,0.5]
[1768921745042,3.41297459,3006.5,3004.4,0.5]
[1768921745239,3.41297459,3006.5,3002.6,3.36670728]
[1768921745240,0.16653,3005.3,3002.6,3.36670728]
[1768921745443,3.325,3006.4,3002.2,0.5]
[1768921745444,3.41297459,3006.3,3003.1,3.36670728]
[1768921745642,0.16654,3005.0,3003.1,3.36670728]
[1768921745834,3.41297459,3005.7,3003.1,3.36670728]
[1768921746037,0.16658,3004.5,3002.4,3.36670728]
[1768921746237,0.16653,3005.3,3003.0,8.26856678]
[1768921746438,0.00426154,3006.5,3003.1,5.35370728]
[1768921746439,0.1665,3005.8,3003.1,5.35370728]
[1768921746741,0.16655,3005.0,3003.1,3.36670728]
[1768921746940,3.41297459,3006.0,3003.1,3.36670728]
[1768921747144,3.41297459,3005.8,3003.1,3.36670728]
[1768921747644,0.16656,3004.8,3003.3,3.36670728]
[1768921748143,0.1665,3005.7,3003.5,3.36670728]
[1768921748343,0.16647,3006.3,3003.5,3.36670728]
[1768921748537,3.41297459,3005.6,3003.0,8.27264376]
[1768921748740,6.73997459,3006.3,3003.1,3.36670728]
[1768921748940,0.16654,3005.0,3003.1,3.36670728]
[1768921749150,0.16655,3004.9,3003.1,3.36670728]
[1768921749352,0.16655,3004.9,3003.4,0.5]
[1768921749544,3.41297459,3006.0,3003.1,3.36670728]
[1768921749743,3.41297459,3005.8,3003.1,3.36670728]
[1768921749945,0.16655,3004.9,3003.1,3.36670728]
[1768921750255,0.16655,3004.9,3003.1,3.86670728]
[1768921750456,3.41297459,3005.8,3003.1,3.36670728]
[1768921750640,3.41297459,3005.5,3003.1,3.36670728]
[1768921750844,0.16657,3004.6,3003.1,3.36670728]
[1768921751043,0.16657,3004.6,3003.1,3.86670728]
[1768921751249,0.16657,3004.6,3003.7,0.5]
[1768921751447,3.327,3006.0,3003.7,0.5]
[1768921751650,3.41297459,3006.1,3003.1,3.36670728]
[1768921751950,0.16653,3005.2,3003.3,3.86670728]
[1768921752144,0.16653,3005.2,3003.0,4.90593648]
[1768921752145,0.1665,3005.7,3003.9,0.5]
[1768921752340,0.1665,3005.7,3004.1,3.36670728]
[1768921752545,0.17072154,3006.5,3004.5,3.36670728]
[1768921752741,0.17072154,3006.5,3005.2,3.36670728]
[1768921752957,0.17072154,3006.5,3005.4,3.36670728]
[1768921753150,0.17072154,3006.5,3005.9,0.5]
[1768921753456,0.16642,3007.3,3005.4,3.36670728]
[1768921753647,0.16637,3008.1,3005.8,0.5]
[1768921753848,3.41297459,3009.6,3006.4,3.36670728]
[1768921754146,3.6775446,3009.6,3006.6,3.36670728]
[1768921754350,3.41297459,3009.4,3005.8,3.36670728]
[1768921754547,3.41297459,3008.5,3005.8,3.36670728]
[1768921754752,0.16639,3007.7,3005.8,3.36670728]
[1768921754947,0.16639,3007.7,3006.0,3.49775294]
[1768921755147,3.70706177,3008.7,3005.3,3.49775294]
[1768921755347,0.16642,3007.3,3005.3,3.49775294]
[1768921755553,3.70706177,3008.3,3005.3,3.49775294]
[1768921755752,3.328,3008.8,3005.3,3.49775294]
[1768921755753,0.16647,3006.4,3005.3,3.49775294]
[1768921755949,0.00367341,3006.4,3005.2,7.54e-06]
[1768921756149,0.16654,3005.1,3004.0,3.328]
[1768921756551,0.16654,3005.1,3004.2,0.5]
[1768921756759,3.71073518,3006.4,3004.6,0.5]
[1768921756958,0.00367341,3006.4,3004.1,3.49775294]
[1768921757150,0.00367341,3006.4,3004.1,3.50057239]
[1768921757347,3.71073518,3006.4,3004.1,0.00281945]
[1768921757546,3.70706177,3006.2,3004.1,0.00281945]
[1768921757754,0.16658,3004.3,3004.1,0.00281945]
[1768921757961,3.70706177,3005.5,3002.7,3.49775294]
[1768921758147,3.70706177,3005.4,3002.7,3.49775294]
[1768921758352,3.70706177,3005.4,3003.1,0.5]
[1768921758551,3.70706177,3005.4,3002.7,3.49775294]
[1768921758748,0.07766207,3003.5,3001.0,4.9672865]
[1768921758954,0.07766207,3003.5,2999.3,1.61302476]
[1768921758955,0.16668,3002.6,2999.0,8.53046644]
[1768921759157,0.16673,3001.6,2997.0,5.0981405]
[1768921759367,3.32,3001.0,2997.1,3.49775294]
[1768921759658,3.32,3001.0,2997.0,5.0981405]
[1768921759659,0.16682,3000.0,2997.5,3.49775294]
[1768921759962,0.00365115,3000.0,2997.5,0.00286379]
[1768921760158,0.00365115,3000.0,2997.7,3.49775294]
[1768921760459,0.00365115,3000.0,2997.5,0.00286379]
[1768921760958,0.16684,2999.7,2997.5,0.00286379]
[1768921761260,3.32835863,3000.0,2997.0,5.0981405]
[1768921761453,0.00365115,3000.0,2996.9,1.991]
[1768921761759,0.00365115,3000.0,2997.0,40.2]
[1768921761951,1.57860063,2999.8,2997.0,4.25059721]
[1768921762153,0.16686,2999.4,2996.5,3.331]
[1768921762353,0.00365115,3000.0,2996.9,1.57860063]
[1768921762548,0.00365115,3000.0,2997.1,40.2]
[1768921762760,0.00365115,3000.0,2997.2,3.331]
[1768921763065,0.16692,2998.3,2996.5,0.00354393]
[1768921763260,4.7335214,3000.0,2996.6,3.49775294]
[1768921763555,4.7335214,3000.0,2997.2,3.49775294]
[1768921763759,0.16689,2998.8,2997.2,3.49775294]
[1768921763948,0.00365115,3000.0,2998.0,3.49775294]
[1768921764348,0.00365115,3000.0,2997.0,5.48975294]
[1768921764559,1.57860063,2999.3,2996.5,0.00354393]
[1768921764763,0.16694,2997.9,2996.5,0.00354393]
[1768921764954,0.16688,2999.0,2996.7,3.49775294]
[1768921765150,0.16688,2999.0,2996.8,3.49775294]
[1768921765349,0.16688,2999.0,2997.7,4.71467607]
[1768921765559,0.16689,2998.7,2997.4,3.49775294]
[1768921765750,0.16692,2998.2,2996.6,3.49775294]
[1768921765955,0.17096601,2998.2,2996.8,3.49775294]
[1768921766157,0.16686,2999.3,2997.3,3.49775294]
[1768921766364,3.333,2999.5,2996.6,3.49775294]
[1768921766565,3.36031726,2999.4,2996.6,3.49775294]
[1768921766756,0.16695,2997.8,2996.5,0.00354393]
[1768921767156,3.36031726,2999.1,2996.8,4.71467607]
[1768921767362,0.16692,2998.2,2997.1,4.71467607]
[1768921767665,4.93891789,2998.6,2996.5,0.00354393]
[1768921767854,4.93891789,2998.6,2995.6,0.5]
[1768921767855,0.167,2996.9,2995.6,0.5]
[1768921768050,3.36031726,2997.8,2995.6,0.5]
[1768921768260,0.1669,2998.5,2996.1,3.49775294]
[1768921768558,0.1669,2998.5,2995.7,3.334]
[1768921768559,0.1669,2998.6,2996.6,3.49775294]
[1768921768865,0.16997555,2998.6,2996.6,3.50036013]
[1768921769061,0.00307555,2998.6,2996.6,3.50036013]
[1768921769255,0.00307555,2998.6,2996.8,4.71467607]
[1768921769459,0.00307555,2998.6,2996.6,3.50036013]
[1768921769665,0.00307555,2998.6,2997.0,4.71467607]
[1768921769860,0.00307555,2998.6,2996.6,3.50036013]
[1768921769861,0.00307555,2998.6,2996.6,0.00260719]
[1768921770166,0.16696,2997.6,2996.6,0.00260719]
[1768921770560,0.16696,2997.6,2996.9,4.71467607]
[1768921770863,3.70706177,3000.1,2997.4,4.54469052]
[1768921771058,3.70706177,3000.1,2997.1,3.49775294]
[1768921771260,3.70706177,3000.1,2997.3,3.49775294]
[1768921771461,3.70706177,3000.9,2997.4,3.49775294]
[1768921771766,1.57860063,3001.3,2998.4,3.49775294]
[1768921771967,0.16683,2999.9,2998.4,3.49775294]
[1768921772470,0.00240558,3001.3,2999.3,4.54469052]
[1768921772664,0.00240558,3001.3,3000.0,4.54469052]
[1768921772859,0.16678,3000.8,3000.3,4.54469052]
[1768921773177,0.00240558,3001.3,2999.5,3.49775294]
[1768921773469,0.16915558,3001.3,2999.5,3.49775294]
[1768921773963,0.16672,3001.9,3000.5,3.49775294]
[1768921774355,0.16672,3001.9,3001.4,4.54469052]
[1768921774560,0.16667,3002.8,3000.5,3.49775294]
[1768921774760,0.17062249,3002.8,3001.5,4.54469052]
[1768921774967,0.17062249,3002.8,3001.5,0.00322948]
[1768921775163,0.17062249,3002.8,3001.5,3.50098242]
[1768921775364,0.17062249,3002.8,3001.5,0.00322948]
[1768921775365,0.00395249,3002.8,3001.5,0.00322948]
[1768921775563,0.16668,3002.6,3001.7,4.54469052]
[1768921775767,0.00395249,3002.8,3001.7,4.54469052]
[1768921775963,0.00395249,3002.8,3001.5,0.00322948]
[1768921776268,0.16662,3003.7,3001.5,3.50098242]
[1768921776568,0.16656,3004.7,3002.4,3.49775294]
[1768921776771,0.16661,3003.8,3001.9,3.49775294]
[1768921777067,0.16657,3004.6,3001.9,7.93244346]
[1768921777369,0.16657,3004.5,3002.1,1.30122639]
[1768921777565,0.16657,3004.5,3002.6,4.54469052]
[1768921777770,0.0039676,3004.6,3002.2,5.332]
[1768921778067,0.16652,3005.4,3002.7,5.63854048]
[1768921778259,3.70706177,3005.5,3002.3,3.335]
[1768921778570,0.16654,3005.2,3002.3,3.335]
[1768921778867,3.70706177,3005.6,3002.6,4.54469052]
[1768921779071,0.16656,3004.7,3002.6,3.49775294]
[1768921779264,0.16656,3004.7,3002.9,3.49775294]
[1768921779569,3.71006892,3005.6,3002.1,6.83275294]
[1768921779570,1.30122639,3004.9,3002.1,6.83275294]
[1768921779766,5.00828816,3004.9,3002.1,6.83275294]
[1768921779967,0.16659,3004.1,3002.8,4.54469052]
[1768921780165,0.16659,3004.1,3002.6,3.49775294]
[1768921780363,3.70706177,3005.4,3002.6,3.49775294]
[1768921780566,0.16664,3003.2,3001.6,3.49775294]
[1768921780761,0.16665,3003.1,3001.6,3.49775294]
[1768921780961,0.00301365,3003.2,3001.6,3.49775294]
[1768921780962,0.16667,3002.8,3001.6,3.49775294]
[1768921781172,0.16667,3002.7,3001.8,4.54469052]
[1768921781364,0.00301365,3003.2,3000.8,3.49775294]
[1768921781763,3.71007542,3003.2,3000.2,3.334]
[1768921781966,3.70706177,3003.0,3000.1,3.49775294]
[1768921782178,0.00301365,3003.2,2999.9,3.334]
[1768921782179,0.16671,3002.1,3000.5,3.49775294]
[1768921782370,0.00301365,3003.2,3000.5,3.49775294]
[1768921782676,0.16672,3001.9,3000.0,4.42330891]
[1768921782879,0.16672,3001.9,3000.0,4.5480454]
[1768921783073,0.16672,3001.9,3000.7,4.54469052]
[1768921783283,0.16672,3001.9,3000.9,4.54469052]
[1768921783481,3.71007542,3003.2,3001.1,4.54469052]
[1768921783778,0.16668,3002.5,3001.1,3.62218941]
[1768921784176,0.16668,3002.5,3002.2,4.54469052]
[1768921784380,0.16669,3002.3,3000.4,3.62218941]
[1768921784685,0.1667,3002.2,3000.5,3.62218941]
[1768921784878,0.1667,3002.2,3000.7,3.55738245]
[1768921785184,0.00301365,3003.2,3001.3,3.55738245]
[1768921785475,0.00301365,3003.2,3001.3,3.56124201]
[1768921785676,0.16668,3002.6,3001.3,3.56124201]
[1768921785878,0.00301365,3003.2,3001.3,3.56124201]
[1768921786076,0.16663,3003.5,3002.0,3.55738245]
[1768921786283,1.30122639,3005.1,3001.3,0.00385956]
[1768921786284,0.16662,3003.6,3002.2,3.55738245]
[1768921786477,3.334,3005.5,3001.5,3.55738245]
[1768921786478,3.56509779,3003.9,3001.5,3.55738245]
[1768921786973,0.16664,3003.2,3001.5,3.55738245]
[1768921787178,0.16666,3002.9,3001.5,6.89138245]
[1768921787376,0.16666,3002.9,3001.6,3.55738245]
[1768921787582,0.16666,3002.8,3001.6,3.55738245]
[1768921787779,0.00364722,3003.2,3001.6,3.55738245]
[1768921787780,0.16668,3002.6,3001.6,3.55738245]
[1768921787980,0.00364722,3003.2,3001.6,3.55738245]
[1768921788290,0.16671,3002.1,3001.3,0.00385956]
[1768921788678,0.16668,3002.6,3001.3,0.00385956]
[1768921788879,0.00364722,3003.2,3001.3,0.00385956]
[1768921789279,3.66128769,3003.1,3001.3,0.00385956]
[1768921789585,0.16672,3001.8,3001.3,0.00385956]
[1768921789782,0.00364722,3003.2,3001.3,0.00385956]
[1768921789983,0.16669,3002.3,3001.3,0.00385956]
[1768921790584,0.00364722,3003.2,3001.3,0.00385956]
[1768921790783,2.52321699,3003.2,3001.3,0.00385956]
[1768921790978,0.1667,3002.2,3001.3,0.00385956]
[1768921791289,0.00364722,3003.2,3001.3,0.00385956]
[1768921791488,0.16668,3002.6,3001.3,0.00385956]
[1768921791688,0.16668,3002.5,3001.3,0.00385956]
[1768921791888,0.16669,3002.5,3001.3,0.00385956]
[1768921792390,0.16669,3002.5,3001.3,3.56124201]
[1768921792692,0.00364722,3003.2,3001.3,3.56124201]
[1768921793096,0.16668,3002.5,3001.3,3.56124201]
[1768921793281,0.1667,3002.2,3001.3,0.00385956]
[1768921793481,0.16671,3002.0,3001.3,0.00385956]
[1768921793895,3.02470959,3003.2,3001.3,0.00385956]
[1768921794187,3.02106237,3003.0,3001.3,9.56e-06]
[1768921794390,0.16674,3001.4,3001.3,9.56e-06]
[1768921794593,2.97488831,3002.8,2999.2,3.55738245]
[1768921794791,0.16676,3001.1,2999.4,3.55738245]
[1768921794991,3.14164831,3002.2,2999.7,3.55738245]
[1768921795187,0.16677,3000.9,2999.7,3.55738245]
[1768921795391,3.14164831,3002.2,2999.0,3.55738245]
[1768921795690,3.14164831,3001.6,2999.0,3.56072853]
[1768921795892,0.16674,3001.5,2999.3,3.55738245]
[1768921796078,0.00383609,3002.2,2999.6,3.55738245]
[1768921796595,0.16672,3001.8,2999.9,3.55738245]
[1768921796794,0.00383609,3002.2,3000.3,3.55738245]
[1768921797088,0.16674,3001.5,3000.3,3.55738245]
[1768921797395,0.16675,3001.3,3000.0,6.89138245]
[1768921797685,0.00383609,3002.2,3000.0,3.55738245]
[1768921797891,0.16678,3000.7,2999.2,3.55738245]
[1768921798791,0.16678,3000.7,2999.2,3.72424245]
[1768921798986,0.16674,3001.4,2999.4,3.55738245]
[1768921799290,0.16674,3001.4,2999.9,3.55738245]
[1768921799487,0.16671,3002.1,3000.2,3.55738245]
[1768921799688,0.00383609,3002.2,3000.8,3.55738245]
[1768921799889,0.00383609,3002.2,3000.9,3.55738245]
[1768921800484,0.16673,3001.6,3000.1,3.55738245]
[1768921800683,0.16674,3001.5,3000.1,3.55738245]
[1768921800885,0.00383609,3002.2,3000.1,3.55738245]
[1768921801098,0.16676,3001.2,3000.1,3.55738245]
[1768921801395,0.16672,3001.8,3000.1,3.55738245]
[1768921801594,0.16672,3001.8,2999.3,40.2]
[1768921801595,0.16665,3003.0,3000.8,3.55738245]
[1768921801787,3.56509779,3004.1,3001.2,3.55738245]
[1768921801994,0.16663,3003.4,3001.7,0.16672]